fUSD/lending_fUSD_20240702
["ID","MTS","AMOUNT","RATE_DAILY","PERIOD"]
[330881676,1719889914393,-500.0,0.00022497,4]
[330881677,1719889914403,-781.39,0.00022497,4]
[330881678,1719889914413,-500.0,0.00022497,4]
[330881679,1719889914422,-150.0,0.00022498,2]
[330881680,1719889914432,-602.43,0.00022498,4]
[330881681,1719889914441,-591.18,0.00022498,4]
[330881682,1719889914451,-500.0,0.00022498,4]
[330881683,1719889914460,-500.0,0.00022498,4]
[330881684,1719889914470,-781.39,0.00022498,4]
[330881685,1719889914479,-500.0,0.00022498,4]
[330881686,1719889914488,-236.75583499,0.00022499,2]
[330881687,1719889914498,-157.83722332,0.00022499,2]
[330881688,1719889914507,-235594.28062198,0.00022499,2]
[330881689,1719889914516,-602.43,0.00022499,4]
[330881690,1719889914525,-602.43,0.00022499,4]
[330881691,1719889914535,-602.43,0.00022499,4]
[330881692,1719889914545,-602.43,0.00022499,4]
[330881693,1719889914555,-602.43,0.00022499,4]
[330881694,1719889914565,-602.43,0.00022499,4]
[330881695,1719889914577,-602.43,0.00022499,4]
[330881696,1719889914587,-602.56,0.00022499,4]
[330881697,1719889914596,-591.18,0.00022499,4]
[330881698,1719889914606,-591.18,0.00022499,4]
[330881699,1719889914625,-591.18,0.00022499,4]
[330881700,1719889914645,-591.18,0.00022499,4]
[330881701,1719889914664,-591.19622271,0.00022499,4]
[330881702,1719889914683,-500.0,0.00022499,4]
[330881703,1719889914706,-369.58,0.00022499,4]
[330881704,1719889914724,-500.0,0.00022499,4]
[330881705,1719889914744,-287.8,0.00022499,4]
[330881706,1719889914760,-781.39,0.00022499,4]
[330881707,1719889914777,-781.39,0.00022499,4]
[330881708,1719889914796,-781.39,0.00022499,4]
[330881709,1719889914818,-781.39,0.00022499,4]
[330881710,1719889914831,-781.54971964,0.00022499,4]
[330881711,1719889914850,-500.0,0.00022499,4]
[330881712,1719889914866,-500.0,0.00022499,4]
[330881713,1719889914883,-375.36231066,0.00022499,4]
[330881714,1719889914899,-4435428.17579101,0.000225,120]
[330881715,1719889916616,-297.65379322,0.000225,120]
[330881716,1719889917021,-254.37672306,0.00013599,2]
[330881717,1719889917038,-72.27424788,0.00013599,2]
[330881718,1719889917054,-378.99757637,0.00018899,2]
[330881719,1719889917068,-154.55620136,0.0002,2]
[330881720,1719889917083,-154.55620136,0.0002,2]
[330881721,1719889917097,-154.55620136,0.0002,2]
[330881722,1719889917112,-154.55620136,0.0002,2]
[330881723,1719889917126,-154.55620136,0.0002,2]
[330881724,1719889917141,-154.55620136,0.0002,2]
[330881725,1719889917155,-154.55620136,0.0002,2]
[330881726,1719889917169,-154.55620136,0.0002,2]
[330881727,1719889917184,-154.55620136,0.0002,2]
[330881728,1719889917198,-154.55620136,0.0002,2]
[330881729,1719889917213,-151.0,0.00021918,2]
[330881730,1719889917227,-209.566694,0.00021918,2]
[330881731,1719889917434,-259.01890004,0.00022465,4]
[330881732,1719889917647,-154.55620136,0.0002,2]
[330881733,1719889917660,-154.55620136,0.0002,2]
[330881734,1719889917670,-154.55620136,0.0002,2]
[330881735,1719889917679,-154.55620136,0.0002,2]
[330881736,1719889917688,-154.55620136,0.0002,2]
[330881737,1719889917697,-154.55620136,0.0002,2]
[330881738,1719889917706,-84.5175237,0.0002,2]
[330881739,1719890048362,53045.64677631,0.00011199,2]
[330881740,1719890048390,73114.41600078,0.00011199,2]
[330881743,1719890331786,10032.59337238,0.00011199,2]
[330881744,1719890546551,4493.9188622,0.00011199,2]
[330881745,1719890550592,6410.51327448,0.00011199,2]
[330881746,1719890601597,3073.51761569,0.00011199,2]
[330881747,1719890689595,314.0,0.000221,120]
[330881748,1719890689959,549.80051246,0.00011199,2]
[330881749,1719890743860,1903.03082168,0.00011199,2]
[330881750,1719890798171,-329.93991412,0.00012739,2]
[330881751,1719890801023,-418.00008588,0.00012739,2]
[330881752,1719890801049,-530.36557167,0.00013128,2]
[330881753,1719890801074,-1539.22186164,0.00013128,2]
[330881754,1719890801098,-823.98594655,0.00013388,2]
[330881755,1719890852567,169.08,0.00010887,2]
[330881757,1719891005801,293.65143291,0.00011199,2]
[330881758,1719891020912,1903.03082168,0.00011199,2]
[330881760,1719891032369,-2893.0,0.00012991,2]
[330881761,1719891032379,-208.31669417,0.00013196,2]
[330881762,1719891032388,-921.35265803,0.00013196,2]
[330881763,1719891032398,-4010.22402076,0.00013231,2]
[330881774,1719891032662,-3168.35,0.00013231,2]
[330881775,1719891032673,-2718.28228407,0.00013231,2]
[330881776,1719891032685,-427.34999358,0.00013231,2]
[330881777,1719891032696,-343.4955451,0.00013231,2]
[330881778,1719891032708,-363.40445475,0.00013231,2]
[330881779,1719891032720,-423.02988,0.00013231,2]
[330881780,1719891032731,-3264.51941235,0.00013231,2]
[330881781,1719891032911,366.025366,0.00011199,2]
[330881782,1719891038480,-9181.34440939,0.00013231,2]
[330881783,1719891038490,-176.01405345,0.00013388,2]
[330881784,1719891038499,-955.28882568,0.00013388,2]
[330881785,1719891038511,-1544.71117432,0.00013388,2]
[330881786,1719891038521,-221.41416768,0.00013388,2]
[330881787,1719891038533,-90921.19343232,0.00013388,2]
[330881788,1719891038543,-5000.26567131,0.00013392,2]
[330881789,1719891038553,-39467.7848,0.00013488,2]
[330881790,1719891038562,-100000.0,0.00013488,2]
[330881791,1719891038572,-72775.4824,0.00013488,2]
[330881792,1719891038582,-167.95,0.00013492,2]
[330881793,1719891038592,-374.70422819,0.00013516,2]
[330881795,1719891038826,-498.85940307,0.00013516,2]
[330881797,1719891038837,-9026.38213077,0.00013699,2]
[330881800,1719891038850,-973.61786923,0.00013699,2]
[330881802,1719891038860,-418.34,0.00013699,2]
[330881804,1719891038870,-2274.24,0.00013699,2]
[330881805,1719891038880,-1500.0,0.00013699,5]
[330881806,1719891038890,-200.0,0.00013699,2]
[330881807,1719891038899,-150.99,0.00013699,2]
[330881808,1719891038910,-533.29050344,0.00013759,2]
[330881809,1719891038920,-155.66365824,0.00013759,2]
[330881810,1719891038930,-484.02884584,0.00013759,2]
[330881811,1719891038940,-388.77229536,0.00013759,2]
[330881812,1719891038950,-4413.10167631,0.0001379,2]
[330881813,1719891038965,-5154.87778712,0.0001379,2]
[330881814,1719891038975,-499.99,0.00013799,2]
[330881815,1719891038984,-1249.96193467,0.00013799,2]
[330881816,1719891039036,-2498.00986388,0.00013799,2]
[330881817,1719891039050,-4259.77194672,0.00013799,2]
[330881818,1719891039060,-264.49854282,0.00013849,2]
[330881819,1719891039070,-277.74016818,0.00013849,2]
[330881820,1719891039081,-155.0,0.00013849,2]
[330881821,1719891039091,-227.09542874,0.00013899,2]
[330881822,1719891039101,-253.31550075,0.000139,2]
[330881823,1719891039111,-1000.0,0.000139,2]
[330881824,1719891039121,-461.77519824,0.00014,2]
[330881825,1719891039131,-250.0,0.00014201,2]
[330881826,1719891039141,-882.02453275,0.00014276,2]
[330881827,1719891039151,-882.02453276,0.00014276,2]
[330881828,1719891039161,-9567.97946337,0.00014389,2]
[330881829,1719891039171,-2120.29548729,0.00014389,2]
[330881830,1719891039183,-560.23058057,0.00014389,2]
[330881831,1719891039195,-2366.64168768,0.00014389,2]
[330881833,1719891040758,-159.03252278,0.00013849,2]
[330881834,1719891040768,-1463.68032229,0.00014389,2]
[330881835,1719891040780,-1120.0285415,0.00014389,2]
[330881837,1719891041087,-376.86712594,0.00014389,2]
[330881839,1719891041097,-250.0,0.00014408,2]
[330881840,1719891041107,-1000.0,0.00014659,2]
[330881843,1719891041117,-1528.85422205,0.00014679,2]
[330881874,1719891043822,-247.51941267,0.00014679,2]
[330881875,1719891046485,-898.25716344,0.00014679,2]
[330881877,1719891150583,22790.26782565,0.00011199,2]
[330881878,1719891176685,11348.16663836,0.00011199,2]
[330881879,1719891203800,14762.76530561,0.00011199,2]
[330881881,1719891219848,944.8159421,0.00011199,2]
[330881887,1719891279500,196.22350627,0.00011199,2]
[330881890,1719891297560,632.56559168,0.00011199,2]
[330881893,1719891318645,19658.35443239,0.00011199,2]
[330881896,1719891340936,424.48736535,0.00011199,2]
[330881897,1719891341404,266.90924019,0.00011199,2]
[330881900,1719891453481,910.88,0.0001094,2]
[330881901,1719891626187,155.38062721,0.00011199,2]
[330881902,1719891723933,157.42391918,0.00011199,2]
[330881903,1719891740073,305.63817819,0.00011199,2]
[330881904,1719891765419,453.70787171,0.00011199,2]
[330881905,1719891795572,374.70422819,0.00011199,2]
[330881906,1719891873343,184.08406782,0.00011199,2]
[330881907,1719891917280,3118.96045845,0.00011199,2]
[330881908,1719891955204,2383.36218704,0.00011199,2]
[330881909,1719891967938,1264.59447785,0.00011199,2]
[330881910,1719891977952,959.65007813,0.00011199,2]
[330881911,1719891992329,910.13,9.96e-05,2]
[330881912,1719891998421,1289.70251898,0.00011199,2]
[330881913,1719892018584,1074.25389935,0.00011199,2]
[330881914,1719892027600,757.13493585,0.00011199,2]
[330881915,1719892028436,1138.39880609,0.00011199,2]
[330881916,1719892039837,661.6047841,0.00011199,2]
[330881917,1719892080854,155.30592588,0.00011199,2]
[330881918,1719892085235,155.32104857,0.00011199,2]
[330881919,1719892111349,155.0,0.00011199,2]
[330881920,1719892126317,246.77971328,0.00011199,2]
[330881921,1719892154161,155.57265804,0.00011199,2]
[330881922,1719892160711,156.3646415,0.00011199,2]
[330881923,1719892165104,-155.05946444,0.00011767,2]
[330881924,1719892171211,155.0,0.00011199,2]
[330881925,1719892176127,346.40487547,0.00011199,2]
[330881926,1719892203022,155.20542885,0.00011199,2]
[330881933,1719892232180,-5.49334409,0.00011767,2]
[330881935,1719892232189,-390.92,0.00011827,2]
[330881937,1719892232198,-167.95,0.0001183,2]
[330881938,1719892232209,-5767.23665591,0.00011849,2]
[330881939,1719892232220,-2292.8472817,0.00011849,2]
[330881940,1719892232231,-1181.70747696,0.00011849,2]
[330881941,1719892232259,-578.5596183,0.00011849,2]
[330881942,1719892232294,-831.66201726,0.00011849,2]
[330881943,1719892232312,-2670.35134403,0.00011849,2]
[330881944,1719892232325,-44.15560584,0.00011849,2]
[330881945,1719892232335,-250.0,0.00011867,2]
[330881946,1719892232346,-49.23395446,0.00011867,2]
[330881947,1719892232358,-499.2998041,0.00011867,2]
[330881948,1719892232376,-2219.9999988,0.00011867,2]
[330881949,1719892232389,-47231.46624264,0.00011867,2]
[330881950,1719892232398,-250.0,0.00012038,2]
[330881951,1719892232408,-910.13,0.00012224,2]
[330881952,1719892232417,-800.0,0.00012362,2]
[330881953,1719892232429,-290.04,0.00012448,2]
[330881954,1719892232438,-261.01,0.00012451,2]
[330881955,1719892232447,-1460.41,0.00012451,2]
[330881956,1719892232457,-169.93,0.00012451,2]
[330881957,1719892232466,-261.01,0.00012485,2]
[330881958,1719892232476,-1217.33,0.00012506,2]
[330881959,1719892232485,-1441.6,0.00012514,2]
[330881960,1719892232495,-467.64,0.00012514,2]
[330881961,1719892232506,-261.01,0.00012519,2]
[330881962,1719892232516,-5488.93,0.00012519,2]
[330881963,1719892232527,-1934.28,0.00012519,2]
[330881964,1719892232538,-150.0,0.00012521,2]
[330881965,1719892232547,-261.01,0.00012554,2]
[330881966,1719892232558,-261.01,0.00012588,2]
[330881967,1719892232569,-150.0,0.000126,2]
[330881968,1719892232580,-261.01,0.00012622,2]
[330881969,1719892232590,-200.0,0.00012623,2]
[330881971,1719892232601,-261.01,0.00012656,2]
[330881972,1719892232610,-261.01,0.0001269,2]
[330881973,1719892232619,-261.01,0.00012724,2]
[330881974,1719892232628,-726.84107906,0.00012755,2]
[330881975,1719892232639,-164.02,0.00012756,2]
[330881976,1719892232650,-261.01,0.00012758,2]
[330881977,1719892232659,-261.01,0.00012792,2]
[330881978,1719892232668,-261.01,0.00012827,2]
[330881979,1719892232871,-261.01,0.00012861,2]
[330881980,1719892232881,-261.01,0.00012895,2]
[330881981,1719892232891,-261.01,0.00012929,2]
[330881982,1719892232900,-261.01,0.00012963,2]
[330881983,1719892232910,-261.01,0.00012997,2]
[330881984,1719892232919,-157.7415,0.00013028,2]
[330881985,1719892232928,-261.01,0.00013031,2]
[330881986,1719892232938,-261.01,0.00013066,2]
[330881987,1719892232947,-150.0,0.00013067,2]
[330881988,1719892232957,-172.85,0.00013093,2]
[330881989,1719892232966,-377.4375,0.00013095,2]
[330881990,1719892232976,-261.01,0.000131,2]
[330881991,1719892232986,-167.68,0.00013173,2]
[330881992,1719892232995,-499.99,0.00013173,2]
[330881993,1719892233005,-1006.53505819,0.00013195,2]
[330881994,1719892233014,-392.67130595,0.00013196,2]
[330881995,1719892233024,-6468.6461,0.00013288,2]
[330881996,1719892233033,-5525.6806,0.00013288,2]
[330881997,1719892233042,-90921.1935,0.00013288,2]
[330881998,1719892233052,-2247.3508,0.00013388,2]
[330881999,1719892233062,-32147.48669741,0.00013388,2]
[330882000,1719892233075,-2488.32184878,0.00013388,2]
[330882001,1719892233106,-1716.95652717,0.00013388,2]
[330882002,1719892233139,-2289.26786308,0.00013388,2]
[330882003,1719892233164,-1033.7,0.00013388,2]
[330882004,1719892233175,-1184.85534718,0.00013388,2]
[330882005,1719892233186,-4987.5367893,0.00013388,2]
[330882007,1719892238079,-1265.58558249,0.00012302,2]
[330882009,1719892238088,-499.99,0.00012448,2]
[330882011,1719892238098,-1233.0177115,0.00013388,2]
[330882012,1719892238137,-51205.59195658,0.00013388,2]
[330882013,1719892238198,-1713.265259,0.00013388,2]
[330882014,1719892238208,-150.0,0.00013533,2]
[330882015,1719892238218,-155.0,0.00013543,2]
[330882016,1719892238227,-314.41671971,0.0001359,2]
[330882017,1719892238237,-4665.93682154,0.0001359,2]
[330882018,1719892238246,-343.23964424,0.0001359,2]
[330882019,1719892238255,-1000.0,0.0001359,2]
[330882020,1719892238264,-314.41671969,0.00013668,2]
[330882021,1719892238274,-500.0,0.0001369,2]
[330882022,1719892238283,-1000.0,0.0001369,2]
[330882023,1719892238292,-210030.0529,0.0001369,2]
[330882024,1719892238304,-156.3334,0.0001369,2]
[330882025,1719892238315,-284.80089114,0.00013698,2]
[330882026,1719892238325,-500.0,0.00013698,2]
[330882027,1719892238334,-500.0,0.00013698,2]
[330882028,1719892238344,-500.0,0.00013698,2]
[330882029,1719892238353,-500.0,0.00013698,2]
[330882030,1719892238364,-500.0,0.00013698,2]
[330882031,1719892238373,-500.0,0.00013698,2]
[330882032,1719892238383,-500.0,0.00013698,2]
[330882033,1719892238398,-518.62961077,0.00013698,2]
[330882034,1719892238408,-500.0,0.00013698,2]
[330882035,1719892238417,-500.0,0.00013698,2]
[330882036,1719892238436,-500.0,0.00013698,2]
[330882037,1719892238446,-500.0,0.00013698,2]
[330882038,1719892238456,-999.99,0.00013699,2]
[330882039,1719892238465,-1538.23,0.00013699,2]
[330882040,1719892238475,-2751.0,0.00013699,2]
[330882041,1719892238485,-10000.0,0.00013699,2]
[330882042,1719892238494,-200.0,0.00013699,2]
[330882043,1719892238504,-1500.0,0.00013699,5]
[330882044,1719892238514,-3203.49,0.00013699,2]
[330882045,1719892238523,-237.68,0.00013699,2]
[330882046,1719892238533,-250.0,0.00013721,2]
[330882047,1719892238542,-314.41671969,0.00013745,2]
[330882048,1719892238551,-2497.64540246,0.00013759,2]
[330882049,1719892238561,-439.33450743,0.0001378,2]
[330882050,1719892238570,-66800.88808572,0.0001379,2]
[330882051,1719892238580,-10646.08948152,0.00013799,2]
[330882052,1719892238589,-853.3974,0.000138,2]
[330882053,1719892238598,-314.41671969,0.00013823,2]
[330882054,1719892238611,-853.3974,0.0001384,2]
[330882055,1719892238620,-853.39739,0.0001386,2]
[330882056,1719892238629,-853.3974,0.0001386,2]
[330882057,1719892238639,-853.3974,0.0001386,2]
[330882058,1719892238648,-853.3974,0.0001387,2]
[330882059,1719892238657,-220.33,0.0001389,3]
[330882060,1719892238667,-222.39746096,0.000139,2]
[330882061,1719892238677,-314.41671969,0.000139,2]
[330882062,1719892238687,-12618.51721494,0.000139,2]
[330882063,1719892238697,-278.28985516,0.000139,2]
[330882064,1719892238707,-922.4944912,0.000139,2]
[330882065,1719892238717,-181.12385849,0.00013902,2]
[330882066,1719892238727,-38463.84920159,0.00013906,2]
[330882067,1719892238736,-800.0,0.00013907,2]
[330882068,1719892238747,-439.33450743,0.0001399,2]
[330882069,1719892238758,-500.0,0.00013999,2]
[330882070,1719892238769,-632.96379727,0.00013999,2]
[330882071,1719892238780,-500.0,0.00013999,2]
[330882072,1719892238790,-500.0,0.00013999,2]
[330882073,1719892238800,-500.0,0.00013999,2]
[330882074,1719892238810,-183.6860836,0.00013999,2]
[330882075,1719892238819,-598.46047159,0.00013999,2]
[330882076,1719892238829,-227.45326176,0.00013999,2]
[330882077,1719892238839,-500.0,0.00013999,2]
[330882078,1719892238849,-500.0,0.00013999,2]
[330882079,1719892238861,-500.0,0.00013999,2]
[330882080,1719892238871,-500.0,0.00013999,2]
[330882081,1719892238881,-500.0,0.00013999,2]
[330882082,1719892238891,-380.45571101,0.00013999,2]
[330882083,1719892238902,-164.9841047,0.00013999,2]
[330882084,1719892238913,-607.45730389,0.00013999,2]
[330882085,1719892238923,-2666.37893822,0.00013999,2]
[330882086,1719892238933,-302.27324941,0.00013999,2]
[330882087,1719892238947,-40391.55230605,0.00013999,2]
[330882088,1719892238958,-155.0,0.00013999,2]
[330882089,1719892238968,-150.0,0.00013999,2]
[330882090,1719892238978,-300.0,0.00013999,2]
[330882091,1719892238988,-1855825.81491816,0.00014,2]
[330882092,1719892238998,-151.23492231,0.00014,2]
[330882093,1719892239008,-500.0,0.00014006,2]
[330882094,1719892239020,-500.0,0.00014006,2]
[330882095,1719892239030,-500.0,0.00014006,2]
[330882096,1719892239041,-172.85,0.00014019,2]
[330882097,1719892239051,-10646.08948146,0.0001419,2]
[330882098,1719892239062,-343.23964415,0.00014219,2]
[330882099,1719892239072,-66800.88808571,0.00014342,2]
[330882100,1719892239083,-1538.23,0.00014384,2]
[330882101,1719892239095,-237.68,0.00014384,2]
[330882102,1719892239106,-9608.0,0.00014398,2]
[330882103,1719892239118,-300.0,0.00014411,2]
[330882104,1719892239128,-200.0,0.00014456,2]
[330882105,1719892239140,-910.13,0.00014487,2]
[330882106,1719892239150,-4665.93682148,0.00014491,2]
[330882107,1719892239161,-150.62302,0.00014532,2]
[330882108,1719892239172,-38463.84920159,0.00014678,2]
[330882109,1719892239183,-167.68,0.00014819,2]
[330882110,1719892239193,-343.23964415,0.00014849,2]
[330882111,1719892239203,-225.51,0.00014904,4]
[330882112,1719892239214,-172.85,0.00014945,2]
[330882113,1719892239224,-439.33450743,0.0001499,2]
[330882114,1719892239234,-150.0,0.00014999,7]
[330882115,1719892239244,-168.59133221,0.00014999,7]
[330882116,1719892239254,-300.0,0.00014999,2]
[330882117,1719892239265,-3968.79438035,0.00015,2]
[330882118,1719892239275,-622.93075988,0.00015,2]
[330882119,1719892239288,-139499.09998441,0.00015,2]
[330882120,1719892239298,-1469994.48118575,0.00015,2]
[330882121,1719892239317,-309707.37053182,0.00015,2]
[330882122,1719892239329,-63317.99999996,0.00015,2]
[330882123,1719892239341,-5857.57815204,0.00015,2]
[330882124,1719892239353,-2650.1,0.00015,2]
[330882125,1719892239438,-1274.25252714,0.00015,2]
[330882126,1719892239453,-1023.55748029,0.00015,2]
[330882127,1719892239465,-807.17588612,0.00015,2]
[330882128,1719892239476,-1224.41236,0.00015,2]
[330882129,1719892239493,-3668.32937367,0.00015,2]
[330882152,1719892240573,-379.43771158,0.00013574,2]
[330882153,1719892240583,-1225.23228264,0.00015,2]
[330882154,1719892240594,-2358.61143541,0.00015,2]
[330882155,1719892240606,-332.28650032,0.00015,2]
[330882156,1719892240618,-154285.10525925,0.00015,2]
[330882157,1719892240629,-83746.2212911,0.00015,2]
[330882158,1719892240656,-36499.39818766,0.00015,2]
[330882159,1719892240716,-8464.01650804,0.00015,2]
[330882160,1719892240777,-499.9996419,0.00015,2]
[330882238,1719892243277,-1006.3525,0.00013188,2]
[330882239,1719892243288,-510.82233285,0.00013188,2]
[330882240,1719892243301,-775.0,0.00013188,2]
[330882241,1719892243392,-5662.82977595,0.00013188,2]
[330882242,1719892243405,-1798.58275583,0.00013188,2]
[330882243,1719892243511,-10049.07179293,0.00013188,2]
[330882244,1719892243523,-80197.34084244,0.00013188,2]
[330882245,1719892243532,-387558.22749408,0.00015,2]
[330882246,1719892243543,-1315.02723563,0.00015,2]
[330882247,1719892243578,-6789.55579907,0.00015,2]
[330882248,1719892243590,-421.401,0.00015,2]
[330882249,1719892243601,-132979.78545659,0.00015,2]
[330882250,1719892243615,-818.84263907,0.00015,2]
[330882251,1719892243626,-660.19,0.00015,2]
[330882252,1719892243636,-2084.09343301,0.00015,2]
[330882253,1719892243648,-1006.62630079,0.00015,2]
[330882254,1719892243659,-352.72799642,0.00015,2]
[330882255,1719892243671,-498.91372094,0.00015,2]
[330882256,1719892243682,-1340.00000071,0.00015,2]
[330882257,1719892243815,-1175.26064,0.00015,2]
[330882258,1719892243827,-701.666667,0.00015,2]
[330882280,1719892246281,-155.0,0.00013516,2]
[330882281,1719892246290,-741.2946775,0.00015,2]
[330882282,1719892246302,-880.88,0.00015,2]
[330882283,1719892246317,-19493.43174621,0.00015,2]
[330882284,1719892246329,-2550.53219726,0.00015,2]
[330882285,1719892246341,-580.50603502,0.00015,2]
[330882286,1719892246352,-4172.91980678,0.00015,2]
[330882287,1719892246365,-905.72771757,0.00015,2]
[330882288,1719892246376,-377.28,0.00015,2]
[330882289,1719892246390,-670.5,0.00015,2]
[330882290,1719892246401,-524.35130645,0.00015,2]
[330882291,1719892246413,-306.21779093,0.00015,2]
[330882292,1719892246424,-854.0,0.00015,2]
[330882293,1719892246436,-2067.64040928,0.00015,2]
[330882294,1719892246447,-483.87719183,0.00015,2]
[330882295,1719892246464,-3879.44750531,0.00015,2]
[330882296,1719892246526,-526.66162884,0.00015,2]
[330882297,1719892246538,-3575.3511807,0.00015,2]
[330882298,1719892246549,-1825.79,0.00015,2]
[330882299,1719892246561,-8543.02259591,0.00015,2]
[330882300,1719892246572,-1652.40358811,0.00015,2]
[330882301,1719892246583,-12351.69321359,0.00015,2]
[330882302,1719892246595,-208487.11316129,0.00015,2]
[330882303,1719892246606,-2849.692,0.00015,2]
[330882304,1719892246618,-400.0,0.00015,2]
[330882305,1719892246656,-393.76878671,0.00015,2]
[330882306,1719892246667,-10391.97917367,0.00015,2]
[330882307,1719892346141,23062.49076095,0.000221,120]
[330882308,1719892380282,194586.88923905,0.0002208,120]
[330882309,1719892411781,7434.4449388,0.00011199,2]
[330882311,1719892433399,2682.493354,0.00011199,2]
[330882312,1719892439805,13118.85223943,0.00011199,2]
[330882317,1719892564939,2198.85723835,0.00011199,2]
[330882318,1719892631099,365.10484834,0.00011199,2]
[330882320,1719892664162,299.24832169,0.00011199,2]
[330882322,1719892736735,163.63235046,0.00011199,2]
[330882323,1719892971823,155.0,0.00011199,2]
[330882326,1719893350116,-308.12292157,0.00011289,2]
[330882327,1719893422357,191.82455405,0.00011199,2]
[330882329,1719893432381,-545.33707843,0.00011289,2]
[330882330,1719893432392,-102.66292157,0.00012302,2]
[330882331,1719893432444,-124.43250717,0.00012302,2]
[330882332,1719893432455,-250.0,0.00013045,2]
[330882333,1719893432465,-250.0,0.00013054,2]
[330882334,1719893432476,-81.70065063,0.00013083,2]
[330882335,1719893432488,-1260.48934937,0.00013083,2]
[330882336,1719893432498,-164.05,0.00013136,2]
[330882337,1719893432507,-1476.86065063,0.00013168,2]
[330882338,1719893432520,-1029.63690608,0.00013168,2]
[330882339,1719893432531,-6867.10994785,0.00013168,2]
[330882340,1719893432565,-335.08950845,0.00013168,2]
[330882341,1719893432576,-276.52,0.00013168,2]
[330882342,1719893432628,-455.85444,0.00013168,2]
[330882343,1719893432641,-637.43298754,0.00013168,2]
[330882344,1719893432652,-12811.49555945,0.00013168,2]
[330882345,1719893432663,-1000.0,0.00013187,2]
[330882346,1719893432673,-107.95632403,0.00013188,2]
[330882347,1719893432687,-432.000004,0.00013188,2]
[330882350,1719893437319,-5768.95031208,0.00013188,2]
[330882351,1719893437331,-1570.35803863,0.00013188,2]
[330882352,1719893437380,-405.2253521,0.00013188,2]
[330882353,1719893437440,-31183.29476916,0.00013188,2]
[330882354,1719893437451,-167.68,0.00013201,2]
[330882355,1719893437461,-1399.56,0.00013429,2]
[330882356,1719893437470,-10115.67,0.00013429,2]
[330882357,1719893437479,-154.36,0.0001346,2]
[330882358,1719893437489,-159.03252278,0.00013472,2]
[330882359,1719893437498,-150.0,0.00013488,2]
[330882360,1719893437508,-853.46,0.00013553,2]
[330882361,1719893437517,-616.89240519,0.00013574,2]
[330882362,1719893437527,-154.36,0.00013635,2]
[330882363,1719893437536,-176.38522464,0.00013683,2]
[330882364,1719893437545,-200.0,0.00013699,2]
[330882365,1719893437554,-1454.87,0.00013699,2]
[330882366,1719893437563,-2751.0,0.00013699,2]
[330882367,1719893437573,-1112.11,0.00013699,2]
[330882368,1719893437583,-1500.0,0.00013699,5]
[330882369,1719893437591,-10000.0,0.00013699,2]
[330882370,1719893437601,-1718.58,0.00013699,2]
[330882371,1719893437611,-6145.09,0.00013699,2]
[330882372,1719893437620,-13048.06,0.00013699,2]
[330882373,1719893437629,-4417.99,0.00013699,2]
[330882374,1719893437639,-154.36,0.0001381,2]
[330882375,1719893437649,-167.7,0.00013817,2]
[330882376,1719893437658,-1000.0,0.00013848,2]
[330882377,1719893437667,-154.36,0.00013986,2]
[330882378,1719893437677,-1000.0,0.00013999,2]
[330882379,1719893437694,-1000.0,0.00013999,2]
[330882380,1719893437705,-1000.0,0.00013999,2]
[330882381,1719893437715,-1000.0,0.00013999,2]
[330882382,1719893437725,-1000.0,0.00013999,2]
[330882383,1719893437737,-1000.0,0.00013999,2]
[330882385,1719893437746,-1098.01873342,0.00013999,2]
[330882387,1719893437756,-426.65646465,0.00014,2]
[330882389,1719893437767,-500.0,0.00014006,2]
[330882390,1719893437777,-500.0,0.00014006,2]
[330882392,1719893437787,-500.0,0.00014006,2]
[330882394,1719893437796,-251.0,0.00014028,2]